[Event "European Online Club-ch-G 2021"]
[Site "Online"]
[Date "2021.03.27"]
[Round "6.19"]
[White "Mastrovasilis, Dimitrios"]
[Black "Kostolansky, Sebastian Lukas"]
[Result "1-0"]
[ECO "C11"]
[WhiteElo "2609"]
[BlackElo "2393"]
[Annotator "ChessBase"]
[PlyCount "61"]
[EventDate "2021.03.27"]
[EventType "team-tourn"]
[EventCountry "NET"]
[SourceTitle "playchess.com"]
[Source "ChessBase"]
[SourceQuality "1"]
[TimeControl "900+5"]

1. e4 {[%emt 0:00:00]} e6 {[%emt 0:00:05]} 2. d4 {[%emt 0:00:12]} d5 {[%emt 0:00:03]} 3. Nc3 {[%emt 0:00:03]} Nf6 {[%emt 0:00:07]} 4. e5 {[%emt 0:00:40]} Nfd7 {[%emt 0:00:05]} 5. f4 {[%emt 0:00:02]} c5 {[%emt 0:00:03]} 6. Nf3 {[%emt 0:00:02]} Nc6 {[%emt 0:00:02]} 7. Be3 {[%emt 0:00:02]} Qb6 {[%emt 0:00:28]} 8. Na4 {[%emt 0:00:28]} Qa5+ {[%emt 0:00:04]} 9. c3 {[%emt 0:00:06]} cxd4 {[%emt 0:00:02]} 10. b4 {[%emt 0:00:03]} Nxb4 {[%emt 0:00:57]} 11. cxb4 {[%emt 0:00:04]} Bxb4+ {[%emt 0:00:02]} 12. Bd2 {[%emt 0:00:02]} Bxd2+ {[%emt 0:00:02]} 13. Nxd2 {[%emt 0:00:02]} b6 {[%emt 0:00:29]} 14. Bd3 {[%emt 0:01:37]} Nc5 {[%emt 0:01:59]} 15. Nxc5 {[%emt 0:01:23]} bxc5 {[%emt 0:00:04]} 16. O-O {[%emt 0:00:03]} O-O {[%emt 0:00:09]} 17. Rc1 {[%emt 0:03:59]} c4 {[%emt 0:01:43]} 18. Bxh7+ {[%emt 0:00:04]} Kxh7 {[%emt 0:00:03]} 19. Qh5+ {[%emt 0:00:02]} Kg8 {[%emt 0:00:26]} 20. Nf3 {[%emt 0:00:02]} f6 {[%emt 0:02:26]} 21. exf6 {[%emt 0:00:06]} gxf6 {[%emt 0:00:22]} 22. Qg6+ {[%emt 0:01:28]} Kh8 {[%emt 0:00:03]} 23. Qh6+ {[%emt 0:01:19]} Kg8 {[%emt 0:00:04]} 24. Qg6+ {[%emt 0:00:00]} Kh8 {[%emt 0:00:03]} 25. Ne5 {[%emt 0:00:02]} Qc7 {[%emt 0:02:06]} 26. Qh6+ {[%emt 0:01:53]} Kg8 {[%emt 0:00:05]} 27. Rf3 {[%emt 0:00:02]} Qg7 {[%emt 0:00:58]} 28. Rg3 {[%emt 0:00:07]} Qxg3 {[%emt 0:00:08]} 29. hxg3 {[%emt 0:00:00]} fxe5 {[%emt 0:00:13]} 30. Qg6+ {[%emt 0:00:03]} Kh8 {[%emt 0:00:04]} 31. Kf2 {[%emt 0:00:05]} 1-0

[Event "European Online Club-ch-G 2021"]
[Site "Online"]
[Date "2021.03.27"]
[Round "6.20"]
[White "Haring, Filip"]
[Black "Tazbir, Marcin"]
[Result "0-1"]
[ECO "A35"]
[WhiteElo "2376"]
[BlackElo "2513"]
[Annotator "ChessBase"]
[PlyCount "124"]
[EventDate "2021.03.27"]
[EventType "team-tourn"]
[EventCountry "NET"]
[SourceTitle "playchess.com"]
[Source "ChessBase"]
[SourceQuality "1"]
[TimeControl "900+5"]

1. Nf3 {[%emt 0:00:00]} c5 {[%emt 0:00:03]} 2. c4 {[%emt 0:00:04]} Nc6 {[%emt 0:00:08]} 3. Nc3 {[%emt 0:00:01]} g6 {[%emt 0:00:03]} 4. e3 {[%emt 0:00:10]} Nf6 {[%emt 0:00:03]} 5. d4 {[%emt 0:00:02]} cxd4 {[%emt 0:00:03]} 6. exd4 {[%emt 0:00:02]} d5 {[%emt 0:00:02]} 7. cxd5 {[%emt 0:00:01]} Nxd5 {[%emt 0:00:03]} 8. Qb3 {[%emt 0:00:01]} e6 {[%emt 0:00:01]} 9. Bb5 {[%emt 0:00:02]} Bg7 {[%emt 0:00:02]} 10. O-O {[%emt 0:00:09]} O-O {[%emt 0:00:03]} 11. Bxc6 {[%emt 0:00:02]} bxc6 {[%emt 0:00:02]} 12. Re1 {[%emt 0:00:26]} Qb6 {[%emt 0:01:10]} 13. Qc2 {[%emt 0:06:37]} Nxc3 {[%emt 0:01:37]} 14. Qxc3 {[%emt 0:00:59]} Bb7 {[%emt 0:01:24]} 15. Ne5 {[%emt 0:01:44]} Rfd8 {[%emt 0:00:34]} 16. Be3 {[%emt 0:00:05]} Qb5 {[%emt 0:00:47]} 17. Nd3 {[%emt 0:03:25]} Rd5 {[%emt 0:03:24]} 18. a4 {[%emt 0:00:53]} Qb6 {[%emt 0:00:20]} 19. a5 {[%emt 0:00:32]} Qd8 {[%emt 0:00:31]} 20. a6 {[%emt 0:00:46]} Bc8 {[%emt 0:00:04]} 21. Nb4 {[%emt 0:00:04]} Rb5 {[%emt 0:00:25]} 22. Nxc6 {[%emt 0:00:12]} Qe8 {[%emt 0:00:05]} 23. b4 {[%emt 0:00:27]} Rb6 {[%emt 0:00:28]} 24. Rec1 {[%emt 0:00:10]} Bxa6 {[%emt 0:00:57]} 25. h4 {[%emt 0:00:02]} Bb7 {[%emt 0:00:28]} 26. Nxa7 {[%emt 0:00:04]} Qd8 {[%emt 0:00:47]} 27. b5 {[%emt 0:00:04]} Qxh4 {[%emt 0:00:20]} 28. f3 {[%emt 0:00:08]} h6 {[%emt 0:01:55]} 29. Bf2 {[%emt 0:00:01]} Qg5 {[%emt 0:00:07]} 30. Qc5 {[%emt 0:00:02]} Qxc5 {[%emt 0:00:43]} 31. dxc5 {[%emt 0:00:01]} Rxb5 {[%emt 0:00:07]} 32. Nxb5 {[%emt 0:00:14]} Rxa1 {[%emt 0:00:03]} 33. Rxa1 {[%emt 0:00:02]} Bxa1 {[%emt 0:00:02]} 34. Na7 {[%emt 0:00:08]} Be5 {[%emt 0:00:05]} 35. c6 {[%emt 0:00:02]} Ba6 {[%emt 0:00:05]} 36. Bb6 {[%emt 0:00:04]} Bb8 {[%emt 0:00:02]} 37. c7 {[%emt 0:00:09]} Bxa7 {[%emt 0:00:02]} 38. Bxa7 {[%emt 0:00:01]} e5 {[%emt 0:00:07]} 39. Kf2 {[%emt 0:00:05]} f6 {[%emt 0:00:03]} 40. g3 {[%emt 0:00:05]} Kf7 {[%emt 0:00:03]} 41. Be3 {[%emt 0:00:04]} g5 {[%emt 0:00:04]} 42. Bb6 {[%emt 0:00:11]} Ke6 {[%emt 0:00:06]} 43. Ba5 {[%emt 0:00:06]} Kd6 {[%emt 0:00:16]} 44. Ke3 {[%emt 0:00:05]} h5 {[%emt 0:00:28]} 45. Kf2 {[%emt 0:00:06]} Kd5 {[%emt 0:00:08]} 46. Bb4 {[%emt 0:00:03]} Bc8 {[%emt 0:00:03]} 47. Be7 {[%emt 0:00:03]} Ke6 {[%emt 0:00:01]} 48. Bd8 {[%emt 0:00:02]} Kf7 {[%emt 0:00:03]} 49. Ke3 {[%emt 0:00:03]} Bb7 {[%emt 0:00:01]} 50. Kf2 {[%emt 0:00:02]} Kg6 {[%emt 0:00:02]} 51. Ke3 {[%emt 0:00:07]} Kf5 {[%emt 0:00:20]} 52. Be7 {[%emt 0:00:08]} Ke6 {[%emt 0:00:09]} 53. Bd8 {[%emt 0:00:01]} Kf5 {[%emt 0:00:02]} 54. Be7 {[%emt 0:00:02]} Bc8 {[%emt 0:00:12]} 55. Bd8 {[%emt 0:00:03]} Kg6 {[%emt 0:00:04]} 56. Be7 {[%emt 0:00:03]} f5 {[%emt 0:00:05]} 57. f4 {[%emt 0:00:14]} h4 {[%emt 0:00:07]} 58. Bxg5 {[%emt 0:00:12]} h3 {[%emt 0:00:05]} 59. Kf2 {[%emt 0:00:05]} e4 {[%emt 0:00:03]} 60. Be7 {[%emt 0:00:05]} Kh5 {[%emt 0:00:10]} 61. Bc5 {[%emt 0:00:08]} Kg4 {[%emt 0:00:01]} 62. Be3 {[%emt 0:00:03]} Bb7 {[%emt 0:00:06]} 0-1

[Event "European Online Club-ch-G 2021"]
[Site "Online"]
[Date "2021.03.27"]
[Round "7.1"]
[White "Gazik, Viktor"]
[Black "Altun, Arda"]
[Result "1-0"]
[ECO "B30"]
[WhiteElo "2542"]
[BlackElo "2074"]
[Annotator "ChessBase"]
[PlyCount "65"]
[EventDate "2021.03.27"]
[EventType "team-tourn"]
[EventCountry "NET"]
[SourceTitle "playchess.com"]
[Source "ChessBase"]
[SourceQuality "1"]
[TimeControl "900+5"]

1. e4 {[%emt 0:00:00]} c5 {[%emt 0:00:04]} 2. Nc3 {[%emt 0:00:01]} Nc6 {[%emt 0:00:04]} 3. Bb5 {[%emt 0:00:02]} Nd4 {[%emt 0:00:06]} 4. Bc4 {[%emt 0:00:01]} e6 {[%emt 0:00:01]} 5. Nf3 {[%emt 0:00:01]} Nf6 {[%emt 0:00:02]} 6. O-O {[%emt 0:00:02]} a6 {[%emt 0:00:02]} 7. d3 {[%emt 0:00:02]} b5 {[%emt 0:00:02]} 8. Bb3 {[%emt 0:00:01]} Nxb3 {[%emt 0:00:01]} 9. axb3 {[%emt 0:00:00]} Bb7 {[%emt 0:00:02]} 10. e5 {[%emt 0:00:01]} Nd5 {[%emt 0:00:01]} 11. Ng5 {[%emt 0:00:03]} f6 {[%emt 0:01:46]} 12. exf6 {[%emt 0:03:58]} Qxf6 {[%emt 0:01:17]} 13. Nce4 {[%emt 0:00:19]} Qg6 {[%emt 0:00:17]} 14. Re1 {[%emt 0:02:23]} Be7 {[%emt 0:00:32]} 15. Nf3 {[%emt 0:01:17]} O-O {[%emt 0:00:40]} 16. Ne5 {[%emt 0:00:13]} Qf5 {[%emt 0:03:26]} 17. Nxd7 {[%emt 0:00:04]} Rf7 {[%emt 0:02:28]} 18. g4 {[%emt 0:00:12]} Qf3 {[%emt 0:00:15]} 19. Qxf3 {[%emt 0:00:02]} Rxf3 {[%emt 0:00:01]} 20. Ndxc5 {[%emt 0:00:09]} Bxc5 {[%emt 0:00:10]} 21. Nxc5 {[%emt 0:00:02]} Nb4 {[%emt 0:00:40]} 22. Nxb7 {[%emt 0:00:19]} Nxc2 {[%emt 0:00:03]} 23. Be3 {[%emt 0:00:02]} Nxe1 {[%emt 0:00:20]} 24. Rxe1 {[%emt 0:00:00]} Rc8 {[%emt 0:00:19]} 25. Kg2 {[%emt 0:00:16]} Rff8 {[%emt 0:00:27]} 26. Nc5 {[%emt 0:00:03]} e5 {[%emt 0:00:07]} 27. b4 {[%emt 0:00:08]} Rfd8 {[%emt 0:00:15]} 28. Kf3 {[%emt 0:00:05]} Kf7 {[%emt 0:00:02]} 29. Ke4 {[%emt 0:00:02]} Re8 {[%emt 0:00:08]} 30. Ra1 {[%emt 0:00:05]} Rc6 {[%emt 0:00:06]} 31. h3 {[%emt 0:00:19]} h6 {[%emt 0:00:14]} 32. h4 {[%emt 0:00:11]} g6 {[%emt 0:00:10]} 33. Bxh6 {[%emt 0:00:32]} 1-0

[Event "European Online Club-ch-G 2021"]
[Site "Online"]
[Date "2021.03.27"]
[Round "7.2"]
[White "Danaci, Ege"]
[Black "Sahidi, Samir"]
[Result "0-1"]
[ECO "B11"]
[WhiteElo "1996"]
[BlackElo "2407"]
[Annotator "NA"]
[PlyCount "72"]
[EventDate "2021.03.27"]
[EventType "team-tourn"]
[EventCountry "NET"]
[SourceTitle "playchess.com"]
[Source "ChessBase"]
[SourceQuality "1"]
[TimeControl "900+5"]

1. e4 {[%emt 0:00:00]} c6 {[%emt 0:00:07]} 2. Nc3 {[%emt 0:00:05]} d5 {[%emt 0:00:02]} 3. Nf3 {[%emt 0:00:01]} Nf6 {[%emt 0:00:47]} 4. e5 {[%emt 0:00:08]} Ne4 {[%emt 0:00:03]} 5. Ne2 {[%emt 0:00:01]} Bg4 {[%emt 0:00:19]} 6. d3 {[%emt 0:01:09]} Bxf3 {[%emt 0:00:38]} 7. gxf3 {[%emt 0:00:02]} Nc5 {[%emt 0:00:02]} 8. d4 {[%emt 0:00:04]} Ne6 {[%emt 0:00:02]} 9. Bh3 {[%emt 0:00:14]} Nc7 {[%emt 0:00:50]} 10. e6 {[%emt 0:02:19]} Nxe6 {[%emt 0:00:25]} 11. Bxe6 {[%emt 0:00:04]} fxe6 {[%emt 0:00:02]} 12. Nf4 {[%emt 0:00:01]} e5 {[%emt 0:00:50]} 13. dxe5 {[%emt 0:00:11]} e6 {[%emt 0:00:13]} 14. Qe2 {[%emt 0:01:04]} Qe7 {[%emt 0:00:12]} 15. Bd2 {[%emt 0:00:09]} Nd7 {[%emt 0:00:02]} 16. O-O-O {[%emt 0:00:35]} O-O-O {[%emt 0:00:16]} 17. h4 {[%emt 0:00:04]} Qf7 {[%emt 0:00:16]} 18. Rdg1 {[%emt 0:00:47]} Bc5 {[%emt 0:00:56]} 19. Nd3 {[%emt 0:00:06]} Bb6 {[%emt 0:00:13]} 20. f4 {[%emt 0:00:25]} Nc5 {[%emt 0:00:52]} 21. Ne1 {[%emt 0:01:49]} Rhf8 {[%emt 0:00:37]} 22. Be3 {[%emt 0:00:47]} Ne4 {[%emt 0:01:19]} 23. f3 {[%emt 0:00:14]} Nc5 {[%emt 0:00:30]} 24. Rg5 {[%emt 0:00:59]} Qe7 {[%emt 0:01:06]} 25. Rhg1 {[%emt 0:00:40]} Rf7 {[%emt 0:00:06]} 26. Bxc5 {[%emt 0:02:01]} Bxc5 {[%emt 0:00:24]} 27. R1g2 {[%emt 0:00:05]} Rdf8 {[%emt 0:00:39]} 28. Nd3 {[%emt 0:00:05]} Bb6 {[%emt 0:00:10]} 29. h5 {[%emt 0:00:44]} c5 {[%emt 0:00:17]} 30. f5 {[%emt 0:01:20]} c4 {[%emt 0:00:19]} 31. Nf4 {[%emt 0:00:28]} Rxf5 {[%emt 0:00:11]} 32. Rxg7 {[%emt 0:00:08]} R8f7 {[%emt 0:00:08]} 33. Rg8+ {[%emt 0:00:49]} Kd7 {[%emt 0:00:18]} 34. Nh3 {[%emt 0:00:07]} Rxf3 {[%emt 0:00:10]} 35. Ng5 {[%emt 0:00:02]} Rf1+ {[%emt 0:00:02]} 36. Kd2 {[%emt 0:00:02]} Qb4+ {[%emt 0:00:02]} 0-1

[Event "European Online Club-ch-G 2021"]
[Site "Online"]
[Date "2021.03.27"]
[Round "7.3"]
[White "Kostolansky, Sebastian Lukas"]
[Black "Yildirim, Ibrahim Halil"]
[Result "1-0"]
[ECO "B12"]
[WhiteElo "2393"]
[BlackElo "1783"]
[Annotator "NA"]
[PlyCount "115"]
[EventDate "2021.03.27"]
[EventType "team-tourn"]
[EventCountry "NET"]
[SourceTitle "playchess.com"]
[Source "ChessBase"]
[SourceQuality "1"]
[TimeControl "900+5"]

1. e4 {[%emt 0:00:00]} c6 {[%emt 0:00:07]} 2. d4 {[%emt 0:00:04]} d5 {[%emt 0:00:02]} 3. e5 {[%emt 0:00:02]} Bf5 {[%emt 0:00:01]} 4. h4 {[%emt 0:00:03]} h5 {[%emt 0:00:02]} 5. c4 {[%emt 0:00:06]} e6 {[%emt 0:00:01]} 6. Nc3 {[%emt 0:00:03]} Ne7 {[%emt 0:00:02]} 7. Nge2 {[%emt 0:00:09]} Nd7 {[%emt 0:00:03]} 8. Ng3 {[%emt 0:00:06]} Bg6 {[%emt 0:00:01]} 9. Bg5 {[%emt 0:00:08]} Qb6 {[%emt 0:00:02]} 10. Rc1 {[%emt 0:02:02]} f6 {[%emt 0:00:10]} 11. exf6 {[%emt 0:00:42]} gxf6 {[%emt 0:00:03]} 12. Be3 {[%emt 0:00:50]} O-O-O {[%emt 0:00:14]} 13. Be2 {[%emt 0:01:16]} Bh6 {[%emt 0:04:29]} 14. Bxh6 {[%emt 0:01:40]} Rxh6 {[%emt 0:00:03]} 15. Qd2 {[%emt 0:00:11]} Rh7 {[%emt 0:01:02]} 16. O-O {[%emt 0:00:12]} Rg8 {[%emt 0:01:24]} 17. Rfe1 {[%emt 0:02:11]} Rhg7 {[%emt 0:01:41]} 18. cxd5 {[%emt 0:01:16]} Nxd5 {[%emt 0:00:47]} 19. Nxd5 {[%emt 0:00:32]} exd5 {[%emt 0:00:06]} 20. Bf3 {[%emt 0:00:12]} Kb8 {[%emt 0:03:04]} 21. Qf4+ {[%emt 0:00:06]} Ka8 {[%emt 0:00:07]} 22. Re2 {[%emt 0:02:09]} Qd8 {[%emt 0:02:57]} 23. Rce1 {[%emt 0:00:14]} Qb8 {[%emt 0:00:17]} 24. Qxb8+ {[%emt 0:01:33]} Kxb8 {[%emt 0:00:02]} 25. Re7 {[%emt 0:00:01]} Ne5 {[%emt 0:00:11]} 26. Rxg7 {[%emt 0:00:39]} Nxf3+ {[%emt 0:00:02]} 27. gxf3 {[%emt 0:00:01]} Rxg7 {[%emt 0:00:01]} 28. Re6 {[%emt 0:00:03]} Rf7 {[%emt 0:00:10]} 29. f4 {[%emt 0:00:37]} Bb1 {[%emt 0:00:09]} 30. a3 {[%emt 0:00:07]} Kc7 {[%emt 0:00:02]} 31. Nxh5 {[%emt 0:00:06]} Rh7 {[%emt 0:00:01]} 32. Nxf6 {[%emt 0:00:05]} Rxh4 {[%emt 0:00:02]} 33. Re7+ {[%emt 0:00:05]} Kc8 {[%emt 0:00:14]} 34. Re8+ {[%emt 0:00:01]} Kc7 {[%emt 0:00:01]} 35. Re7+ {[%emt 0:00:01]} Kc8 {[%emt 0:00:02]} 36. Ne8 {[%emt 0:00:02]} Kd8 {[%emt 0:00:08]} 37. Re5 {[%emt 0:00:17]} Be4 {[%emt 0:00:06]} 38. f3 {[%emt 0:00:06]} Bxf3 {[%emt 0:00:04]} 39. Kf2 {[%emt 0:00:06]} Be4 {[%emt 0:00:02]} 40. Kg3 {[%emt 0:00:03]} Rh6 {[%emt 0:00:08]} 41. Ng7 {[%emt 0:00:07]} Rg6+ {[%emt 0:00:04]} 42. Rg5 {[%emt 0:00:02]} Ke7 {[%emt 0:00:07]} 43. Nh5 {[%emt 0:00:08]} Kf7 {[%emt 0:00:06]} 44. Kh4 {[%emt 0:00:03]} Rxg5 {[%emt 0:00:04]} 45. Kxg5 {[%emt 0:00:04]} b6 {[%emt 0:00:03]} 46. Nf6 {[%emt 0:00:05]} Bf3 {[%emt 0:00:06]} 47. Nd7 {[%emt 0:00:02]} Ke7 {[%emt 0:00:06]} 48. Ne5 {[%emt 0:00:02]} Be4 {[%emt 0:00:05]} 49. Nxc6+ {[%emt 0:00:02]} Kd6 {[%emt 0:00:01]} 50. Nxa7 {[%emt 0:00:07]} Kc7 {[%emt 0:00:04]} 51. Nb5+ {[%emt 0:00:02]} Kc6 {[%emt 0:00:01]} 52. Nc3 {[%emt 0:00:02]} Bd3 {[%emt 0:00:04]} 53. f5 {[%emt 0:00:02]} Kd6 {[%emt 0:00:01]} 54. Kf6 {[%emt 0:00:02]} b5 {[%emt 0:00:03]} 55. b4 {[%emt 0:00:04]} Bc4 {[%emt 0:00:10]} 56. Kg7 {[%emt 0:00:03]} Bd3 {[%emt 0:00:03]} 57. f6 {[%emt 0:00:01]} Ke6 {[%emt 0:00:01]} 58. f7 {[%emt 0:00:02]} 1-0

[Event "European Online Club-ch-G 2021"]
[Site "Online"]
[Date "2021.03.27"]
[Round "7.4"]
[White "Ozata, Doruk"]
[Black "Haring, Filip"]
[Result "0-1"]
[ECO "B13"]
[WhiteElo "1646"]
[BlackElo "2376"]
[Annotator "NA"]
[PlyCount "44"]
[EventDate "2021.03.27"]
[EventType "team-tourn"]
[EventCountry "NET"]
[SourceTitle "playchess.com"]
[Source "ChessBase"]
[SourceQuality "1"]
[TimeControl "900+5"]

1. e4 {[%emt 0:00:00]} c6 {[%emt 0:00:03]} 2. d4 {[%emt 0:00:03]} d5 {[%emt 0:00:01]} 3. exd5 {[%emt 0:00:01]} cxd5 {[%emt 0:00:02]} 4. Bd3 {[%emt 0:00:02]} Nc6 {[%emt 0:00:03]} 5. c3 {[%emt 0:00:04]} e6 {[%emt 0:00:01]} 6. Bf4 {[%emt 0:00:08]} Bd6 {[%emt 0:00:05]} 7. Bxd6 {[%emt 0:00:04]} Qxd6 {[%emt 0:00:02]} 8. Nf3 {[%emt 0:00:02]} Nge7 {[%emt 0:00:05]} 9. O-O {[%emt 0:00:03]} f6 {[%emt 0:00:06]} 10. Re1 {[%emt 0:00:22]} O-O {[%emt 0:00:27]} 11. Qc2 {[%emt 0:00:17]} g6 {[%emt 0:01:39]} 12. h4 {[%emt 0:00:26]} e5 {[%emt 0:00:27]} 13. dxe5 {[%emt 0:00:11]} fxe5 {[%emt 0:00:02]} 14. Bf1 {[%emt 0:00:03]} e4 {[%emt 0:04:41]} 15. Nd4 {[%emt 0:00:17]} Ne5 {[%emt 0:00:36]} 16. g3 {[%emt 0:02:35]} Ng4 {[%emt 0:00:25]} 17. Re2 {[%emt 0:00:45]} Nf5 {[%emt 0:01:34]} 18. Nxf5 {[%emt 0:02:10]} Bxf5 {[%emt 0:00:04]} 19. Qb3 {[%emt 0:00:37]} e3 {[%emt 0:01:17]} 20. fxe3 {[%emt 0:00:11]} Qxg3+ {[%emt 0:00:05]} 21. Rg2 {[%emt 0:00:10]} Qxe3+ {[%emt 0:00:03]} 22. Kh1 {[%emt 0:00:08]} Be4 {[%emt 0:00:12]} 0-1

[Event "European Online Club-ch-G 2021"]
[Site "Online"]
[Date "2021.03.27"]
[Round "7.5"]
[White "Harvey, Marcus R"]
[Black "Bartel, Mateusz"]
[Result "0-1"]
[ECO "D04"]
[WhiteElo "2440"]
[BlackElo "2635"]
[Annotator "ChessBase"]
[PlyCount "72"]
[EventDate "2021.03.27"]
[EventType "team-tourn"]
[EventCountry "NET"]
[SourceTitle "playchess.com"]
[Source "ChessBase"]
[SourceQuality "1"]
[TimeControl "900+5"]

1. Nf3 {[%emt 0:00:00]} g6 {[%emt 0:00:29]} 2. b3 {[%emt 0:00:04]} Bg7 {[%emt 0:00:03]} 3. d4 {[%emt 0:00:01]} d5 {[%emt 0:01:36]} 4. Bb2 {[%emt 0:00:02]} Nf6 {[%emt 0:00:02]} 5. e3 {[%emt 0:00:02]} O-O {[%emt 0:00:09]} 6. c4 {[%emt 0:00:01]} c6 {[%emt 0:00:21]} 7. Bd3 {[%emt 0:00:03]} Bf5 {[%emt 0:00:14]} 8. Nc3 {[%emt 0:00:21]} Nbd7 {[%emt 0:00:06]} 9. O-O {[%emt 0:00:15]} Re8 {[%emt 0:00:32]} 10. Rc1 {[%emt 0:00:11]} Bxd3 {[%emt 0:01:46]} 11. Qxd3 {[%emt 0:00:02]} e6 {[%emt 0:00:00]} 12. Rfd1 {[%emt 0:00:11]} Qa5 {[%emt 0:00:04]} 13. a3 {[%emt 0:00:19]} a6 {[%emt 0:00:08]} 14. b4 {[%emt 0:00:47]} Qc7 {[%emt 0:00:25]} 15. e4 {[%emt 0:00:22]} dxe4 {[%emt 0:00:23]} 16. Nxe4 {[%emt 0:00:00]} Nxe4 {[%emt 0:00:02]} 17. Qxe4 {[%emt 0:00:00]} a5 {[%emt 0:00:01]} 18. b5 {[%emt 0:00:46]} a4 {[%emt 0:00:03]} 19. Ne5 {[%emt 0:00:25]} Nxe5 {[%emt 0:00:42]} 20. dxe5 {[%emt 0:00:03]} Red8 {[%emt 0:00:02]} 21. bxc6 {[%emt 0:05:07]} bxc6 {[%emt 0:00:04]} 22. g3 {[%emt 0:01:48]} Bf8 {[%emt 0:00:13]} 23. Kg2 {[%emt 0:01:00]} Rab8 {[%emt 0:02:05]} 24. Rxd8 {[%emt 0:00:58]} Qxd8 {[%emt 0:00:22]} 25. Qc2 {[%emt 0:00:42]} Qb6 {[%emt 0:00:12]} 26. Bc3 {[%emt 0:00:38]} Qb3 {[%emt 0:00:05]} 27. Bb4 {[%emt 0:00:49]} Bxb4 {[%emt 0:00:15]} 28. Qxb3 {[%emt 0:00:02]} axb3 {[%emt 0:00:03]} 29. axb4 {[%emt 0:00:01]} Rxb4 {[%emt 0:00:02]} 30. Kf3 {[%emt 0:00:02]} b2 {[%emt 0:01:31]} 31. Rb1 {[%emt 0:00:02]} Kg7 {[%emt 0:00:02]} 32. Ke3 {[%emt 0:00:08]} c5 {[%emt 0:00:01]} 33. Kd3 {[%emt 0:00:56]} Kh6 {[%emt 0:00:19]} 34. h4 {[%emt 0:01:07]} g5 {[%emt 0:00:05]} 35. hxg5+ {[%emt 0:00:24]} Kxg5 {[%emt 0:00:02]} 36. Kc2 {[%emt 0:00:01]} Rxc4+ {[%emt 0:00:07]} 0-1

[Event "European Online Club-ch-G 2021"]
[Site "Online"]
[Date "2021.03.27"]
[Round "7.6"]
[White "Gumularz, Szymon"]
[Black "Houska, Jovanka"]
[Result "1-0"]
[ECO "B13"]
[WhiteElo "2517"]
[BlackElo "2381"]
[Annotator "ChessBase"]
[PlyCount "93"]
[EventDate "2021.03.27"]
[EventType "team-tourn"]
[EventCountry "NET"]
[SourceTitle "playchess.com"]
[Source "ChessBase"]
[SourceQuality "1"]
[TimeControl "900+5"]

1. e4 {[%emt 0:00:00]} c6 {[%emt 0:00:04]} 2. d4 {[%emt 0:00:03]} d5 {[%emt 0:00:02]} 3. exd5 {[%emt 0:00:02]} cxd5 {[%emt 0:00:01]} 4. Bd3 {[%emt 0:00:02]} Nc6 {[%emt 0:00:02]} 5. c3 {[%emt 0:00:01]} Qc7 {[%emt 0:00:01]} 6. h3 {[%emt 0:00:02]} Nf6 {[%emt 0:00:03]} 7. Nf3 {[%emt 0:00:01]} g6 {[%emt 0:00:02]} 8. O-O {[%emt 0:00:02]} Bf5 {[%emt 0:00:05]} 9. Be2 {[%emt 0:00:02]} Bg7 {[%emt 0:00:41]} 10. Be3 {[%emt 0:00:02]} O-O {[%emt 0:00:09]} 11. Nbd2 {[%emt 0:00:02]} Bd7 {[%emt 0:01:36]} 12. Re1 {[%emt 0:00:07]} Nh5 {[%emt 0:00:19]} 13. Nb3 {[%emt 0:00:11]} Nf4 {[%emt 0:00:09]} 14. Bf1 {[%emt 0:00:03]} Ne6 {[%emt 0:00:50]} 15. Qd2 {[%emt 0:00:16]} b6 {[%emt 0:00:37]} 16. Bh6 {[%emt 0:00:07]} Bxh6 {[%emt 0:00:14]} 17. Qxh6 {[%emt 0:00:03]} Qf4 {[%emt 0:00:01]} 18. Qxf4 {[%emt 0:00:09]} Nxf4 {[%emt 0:00:03]} 19. a4 {[%emt 0:00:06]} h6 {[%emt 0:00:37]} 20. h4 {[%emt 0:00:08]} Nh5 {[%emt 0:02:07]} 21. a5 {[%emt 0:00:27]} bxa5 {[%emt 0:00:03]} 22. Nxa5 {[%emt 0:00:08]} e6 {[%emt 0:01:05]} 23. Nxc6 {[%emt 0:00:05]} Bxc6 {[%emt 0:00:01]} 24. Ne5 {[%emt 0:00:01]} Be8 {[%emt 0:00:33]} 25. Ra5 {[%emt 0:00:57]} g5 {[%emt 0:00:29]} 26. hxg5 {[%emt 0:00:05]} hxg5 {[%emt 0:00:02]} 27. Rea1 {[%emt 0:00:04]} Rb8 {[%emt 0:00:01]} 28. b4 {[%emt 0:00:13]} Rc8 {[%emt 0:00:25]} 29. R1a3 {[%emt 0:00:08]} f6 {[%emt 0:00:06]} 30. Nd3 {[%emt 0:00:01]} Rf7 {[%emt 0:00:01]} 31. Nc5 {[%emt 0:00:03]} Rcc7 {[%emt 0:00:53]} 32. Nxe6 {[%emt 0:01:34]} Rce7 {[%emt 0:00:03]} 33. Ra6 {[%emt 0:00:43]} Nf4 {[%emt 0:00:54]} 34. Nxf4 {[%emt 0:00:03]} gxf4 {[%emt 0:00:01]} 35. f3 {[%emt 0:00:54]} Re1 {[%emt 0:00:13]} 36. Ra1 {[%emt 0:01:14]} Rfe7 {[%emt 0:00:19]} 37. Kf2 {[%emt 0:04:17]} R1e3 {[%emt 0:01:29]} 38. R1a3 {[%emt 0:00:16]} f5 {[%emt 0:00:59]} 39. b5 {[%emt 0:01:50]} Re1 {[%emt 0:00:17]} 40. Rxa7 {[%emt 0:00:19]} Rxa7 {[%emt 0:00:38]} 41. Rxa7 {[%emt 0:00:02]} Rb1 {[%emt 0:00:01]} 42. Bd3 {[%emt 0:00:48]} Rb2+ {[%emt 0:00:36]} 43. Kg1 {[%emt 0:00:05]} Bxb5 {[%emt 0:00:01]} 44. Rb7 {[%emt 0:00:34]} Rxg2+ {[%emt 0:00:05]} 45. Kxg2 {[%emt 0:00:02]} Bxd3 {[%emt 0:00:01]} 46. Re7 {[%emt 0:00:14]} Kf8 {[%emt 0:00:27]} 47. Re5 {[%emt 0:00:02]} 1-0